fUST/lending_fUST_20250911
["ID","MTS","AMOUNT","RATE_DAILY","PERIOD"]
[384835595,1757581858820,-151.82637475,0.00016712,2]
[384835596,1757581858832,-527.89024325,0.00016712,2]
[384835597,1757581858844,-166.08975675,0.00016712,2]
[384835598,1757581858854,-444.08862352,0.00016712,2]
[384835599,1757581859130,-157.870771,0.00013673,2]
[384835600,1757581859140,-480.0,0.00013698,2]
[384835601,1757581859151,-480.0,0.00013698,2]
[384835602,1757581859160,-480.0,0.00013698,2]
[384835603,1757581859170,-480.0,0.00013698,2]
[384835604,1757581859179,-1624.52,0.00016164,2]
[384835605,1757581859188,-1624.52,0.00016438,2]
[384835606,1757581859198,-1084.70137648,0.00016712,2]
[384835607,1757581859207,-480.0,0.00016712,2]
[384835608,1757581859216,-1185.58,0.00016712,2]
[384835609,1757581859226,-3137.01,0.00016712,2]
[384835610,1757581859235,-4040.42,0.00016712,2]
[384835611,1757581859245,-1324.33,0.00016712,2]
[384835612,1757581859254,-1538.63,0.00016712,2]
[384835613,1757581859263,-1298.91,0.00016712,2]
[384835614,1757581859273,-1624.52,0.00016712,2]
[384835615,1757581859282,-360.0,0.00016805,2]
[384835616,1757581859292,-824.92692514,0.00016895,2]
[384835617,1757581859303,-582.82006586,0.00016895,2]
[384835618,1757581859315,-618.82723094,0.00016895,2]
[384835619,1757581859324,-864.0,0.00016904,2]
[384835620,1757581859337,-565.28,0.00016986,2]
[384835621,1757581859347,-1477.91,0.00016986,2]
[384835622,1757581859356,-351.96057474,0.00016986,2]
[384835623,1757581859365,-480.0,0.00016986,2]
[384835624,1757581859374,-484.72,0.00016986,2]
[384835625,1757581859384,-146.00219432,0.00016986,2]
[384835626,1757581859585,251.0,0.0002196,120]
[384835627,1757581859657,251.0,0.0002195,120]
[384835628,1757581859698,251.0,0.0002194,120]
[384835629,1757581859749,251.0,0.0002459,120]
[384835630,1757581871470,251.0,0.0002458,120]
[384835631,1757581872331,251.0,0.0002457,120]
[384835632,1757581872840,251.0,0.0002539,120]
[384835633,1757581873307,251.0,0.0002538,120]
[384835634,1757581873790,251.0,0.0002739,120]
[384835635,1757581874269,259.7,0.0002738,120]
[384835636,1757581882972,5000.0,0.000145,9]
[384835637,1757581889472,861.4871203,0.00013473,2]
[384835638,1757581889495,10000.01,0.00013473,2]
[384835639,1757581889518,10000.01,0.00013473,2]
[384835640,1757581889540,10000.01,0.00013473,2]
[384835641,1757581889562,10000.01,0.00013473,2]
[384835642,1757581889584,10000.01,0.00013473,2]
[384835643,1757581889606,10000.01,0.00013473,2]
[384835644,1757581889629,10000.01,0.00013473,2]
[384835645,1757581889651,10000.01,0.00013473,2]
[384835646,1757581889673,10000.01,0.00013473,2]
[384835647,1757581889769,10000.01,0.00013473,2]
[384835648,1757581889792,10000.01,0.00013473,2]
[384835649,1757581889817,10000.01,0.00013473,2]
[384835650,1757581889839,10000.01,0.00013473,2]
[384835651,1757581889862,10000.01,0.00013473,2]
[384835652,1757581889885,10000.01,0.00013473,2]
[384835653,1757581889908,10000.01,0.00013473,2]
[384835654,1757581889934,10000.01,0.00013473,2]
[384835655,1757581889957,10000.01,0.00013473,2]
[384835656,1757581889980,10000.01,0.00013473,2]
[384835657,1757581890003,10000.01,0.00013473,2]
[384835658,1757581890026,10000.01,0.00013473,2]
[384835659,1757581890048,10000.01,0.00013473,2]
[384835660,1757581890070,10000.01,0.00013473,2]
[384835661,1757581890093,10000.01,0.00013473,2]
[384835662,1757581890117,10000.01,0.00013473,2]
[384835663,1757581890139,10000.01,0.00013473,2]
[384835664,1757581890164,10000.01,0.00013473,2]
[384835665,1757581890186,10000.01,0.00013473,2]
[384835666,1757581890208,10000.01,0.00013473,2]
[384835667,1757581890230,10000.01,0.00013473,2]
[384835668,1757581890252,10000.01,0.00013473,2]
[384835669,1757581890275,10000.01,0.00013473,2]
[384835670,1757581890296,10000.01,0.00013473,2]
[384835671,1757581890318,10000.01,0.00013473,2]
[384835672,1757581890340,10000.01,0.00013473,2]
[384835673,1757581890363,10000.01,0.00013473,2]
[384835674,1757581890386,9138.1528797,0.00013473,2]
[384835676,1757581896720,159.230121,0.00024,30]
[384835677,1757581899205,550.0,0.000273,120]
[384835678,1757581899972,153.739556,0.00024,30]
[384835679,1757581900323,153.739556,0.00024,30]
[384835680,1757581900680,153.739556,0.00024,30]
[384835681,1757581910597,2684.17223202,0.000145,9]
[384835682,1757581922504,300.0,0.00013571,2]
[384835683,1757581927026,500.0,0.00013572,2]
[384835684,1757581933735,1200.0,0.00013571,2]
[384835685,1757581958915,1142.21343213,0.00013436,2]
[384835686,1757581967103,949.35,0.00012329,2]
[384835687,1757581975427,3310.770859,0.00027397,120]
[384835688,1757581980811,205.38358885,0.00013571,2]
[384835689,1757581982757,300.0,0.00013571,2]
[384835690,1757581983877,500.0,0.00013571,2]
[384835691,1757581983913,500.0,0.00013571,2]
[384835692,1757581983946,500.0,0.00013571,2]
[384835693,1757581983982,500.0,0.00013571,2]
[384835694,1757581984013,500.0,0.00013571,2]
[384835695,1757581984045,500.0,0.00013571,2]
[384835696,1757581984076,340.7911031,0.00013571,2]
[384835697,1757581984110,500.0,0.00013571,2]
[384835698,1757581984147,500.0,0.00013571,2]
[384835699,1757581984180,500.0,0.00013571,2]
[384835700,1757581984214,500.0,0.00013571,2]
[384835701,1757581984248,62.27187592,0.00013571,2]
[384835702,1757581988252,1000.0,0.00024657,120]
[384835703,1757581988562,1000.0,0.00024657,120]
[384835704,1757581988780,1000.0,0.00024657,120]
[384835705,1757581989132,1000.0,0.00024657,120]
[384835706,1757581989396,1000.0,0.00024657,120]
[384835707,1757581989645,1000.0,0.00024657,120]
[384835708,1757581989897,1000.0,0.00024657,120]
[384835709,1757581990018,1000.0,0.00024657,120]
[384835710,1757581990118,1000.0,0.00024657,120]
[384835711,1757581991415,465.34517517,0.00024657,120]
[384835712,1757581998790,197.78,0.00012329,2]
[384835713,1757582009257,164.82,0.00012329,2]
[384835714,1757582019652,499.2571203,0.00012329,2]
[384835715,1757582019675,324.8628797,0.00012329,2]
[384835716,1757582024170,182.76725642,0.00013471,2]
[384835717,1757582034799,1833.73326962,0.00013435,2]
[384835718,1757582036631,-1000.0,0.0001357,7]
[384835719,1757582036661,-1000.0,0.0001357,7]
[384835720,1757582036689,-437.72812408,0.00013571,2]
[384835721,1757582036839,-500.0,0.00013571,2]
[384835722,1757582036872,-500.0,0.00013571,2]
[384835723,1757582036902,-500.0,0.00013571,2]
[384835724,1757582036930,-500.0,0.00013571,2]
[384835725,1757582036958,-467.52047112,0.00013571,2]
[384835726,1757582037282,-371.92715357,0.00013571,2]
[384835727,1757582037310,-500.0,0.00013571,2]
[384835728,1757582037337,-500.0,0.00013571,2]
[384835729,1757582037365,-500.0,0.00013571,2]
[384835730,1757582037391,-500.0,0.00013571,2]
[384835731,1757582037419,-500.0,0.00013571,2]
[384835732,1757582037446,-368.97325273,0.00013571,2]
[384835733,1757582037473,-500.0,0.00013571,2]
[384835734,1757582037501,-500.0,0.00013571,2]
[384835735,1757582037528,-500.0,0.00013571,2]
[384835736,1757582037555,-18.2091874,0.00013571,2]
[384835737,1757582037730,-481.7908126,0.00013571,2]
[384835738,1757582037763,-500.0,0.00013571,2]
[384835739,1757582037792,-500.0,0.00013571,2]
[384835740,1757582037826,-500.0,0.00013571,2]
[384835741,1757582037853,-500.0,0.00013571,2]
[384835742,1757582037884,-500.0,0.00013571,2]
[384835743,1757582037913,-184.2631139,0.00013571,2]
[384835744,1757582037940,-588.83973017,0.00013571,2]
[384835745,1757582037970,-500.0,0.00013571,2]
[384835746,1757582037999,-500.0,0.00013571,2]
[384835747,1757582038166,-500.0,0.00013571,2]
[384835748,1757582038193,-500.0,0.00013571,2]
[384835749,1757582038223,-306.50145751,0.00013571,2]
[384835750,1757582038252,-500.0,0.00013571,2]
[384835751,1757582038280,-500.0,0.00013571,2]
[384835752,1757582038311,-500.0,0.00013571,2]
[384835753,1757582038428,-500.0,0.00013571,2]
[384835754,1757582038456,-500.0,0.00013571,2]
[384835755,1757582038485,-500.0,0.00013571,2]
[384835756,1757582038513,-500.0,0.00013571,2]
[384835757,1757582038550,-500.0,0.00013571,2]
[384835758,1757582038577,-322.35978413,0.00013571,2]
[384835759,1757582038605,-500.0,0.00013571,2]
[384835760,1757582038643,-500.0,0.00013571,2]
[384835761,1757582038672,-500.0,0.00013571,2]
[384835762,1757582038701,-500.0,0.00013571,2]
[384835763,1757582038729,-500.0,0.00013571,2]
[384835764,1757582038758,-500.0,0.00013571,2]
[384835765,1757582038786,-500.0,0.00013571,2]
[384835766,1757582038815,-500.0,0.00013571,2]
[384835767,1757582045540,300.0,0.00013434,2]
[384835768,1757582050343,383.09,0.00012329,2]
[384835769,1757582054597,-300.0,0.0001357,2]
[384835770,1757582054628,-500.0,0.00013571,2]
[384835771,1757582054659,-500.0,0.00013571,2]
[384835772,1757582054689,-500.0,0.00013571,2]
[384835773,1757582054721,-500.0,0.00013571,2]
[384835774,1757582054751,-500.0,0.00013571,2]
[384835775,1757582054781,-500.0,0.00013571,2]
[384835776,1757582054810,-500.0,0.00013571,2]
[384835777,1757582054839,-500.0,0.00013571,2]
[384835778,1757582054868,-500.0,0.00013571,2]
[384835779,1757582055068,-500.0,0.00013571,2]
[384835780,1757582055098,-500.0,0.00013571,2]
[384835781,1757582055128,-500.0,0.00013571,2]
[384835782,1757582055158,-500.0,0.00013571,2]
[384835783,1757582055188,-500.0,0.00013571,2]
[384835784,1757582055218,-500.0,0.00013571,2]
[384835785,1757582055247,-500.0,0.00013571,2]
[384835786,1757582055277,-500.0,0.00013571,2]
[384835787,1757582055306,-500.0,0.00013571,2]
[384835788,1757582055335,-500.0,0.00013571,2]
[384835789,1757582055567,-500.0,0.00013571,2]
[384835790,1757582055597,-500.0,0.00013571,2]
[384835791,1757582055749,-500.0,0.00013571,2]
[384835792,1757582055780,-500.0,0.00013571,2]
[384835793,1757582055810,-500.0,0.00013571,2]
[384835794,1757582055839,-500.0,0.00013571,2]
[384835795,1757582055869,-500.0,0.00013571,2]
[384835796,1757582055900,-500.0,0.00013571,2]
[384835797,1757582055929,-250.0,0.00013571,2]
[384835798,1757582055960,-500.0,0.00013571,2]
[384835799,1757582055989,-0.01,0.00013571,2]
[384835800,1757582056125,-499.99,0.00013571,2]
[384835801,1757582056155,-500.0,0.00013571,2]
[384835802,1757582056185,-500.0,0.00013571,2]
[384835803,1757582056214,-500.0,0.00013571,2]
[384835804,1757582056245,-500.0,0.00013571,2]
[384835805,1757582056275,-500.0,0.00013571,2]
[384835806,1757582056302,-500.0,0.00013571,2]
[384835807,1757582056331,-500.0,0.00013571,2]
[384835808,1757582056361,-500.0,0.00013571,2]
[384835809,1757582056390,-500.0,0.00013571,2]
[384835810,1757582056541,-500.0,0.00013571,2]
[384835811,1757582056570,-500.0,0.00013571,2]
[384835812,1757582056601,-500.0,0.00013571,2]
[384835813,1757582056630,-500.0,0.00013571,2]
[384835814,1757582056659,-500.0,0.00013571,2]
[384835815,1757582056688,-506.18456982,0.00013571,2]
[384835816,1757582056716,-500.0,0.00013571,2]
[384835817,1757582056761,-500.0,0.00013571,2]
[384835818,1757582056790,-500.0,0.00013571,2]
[384835819,1757582056818,-487.64086036,0.00013571,2]
[384835820,1757582057068,-12.35913964,0.00013571,2]
[384835821,1757582057107,-500.0,0.00013571,2]
[384835822,1757582057137,-500.0,0.00013571,2]
[384835823,1757582057166,-500.0,0.00013571,2]
[384835824,1757582057195,-500.0,0.00013571,2]
[384835825,1757582057226,-500.0,0.00013571,2]
[384835826,1757582057256,-500.0,0.00013571,2]
[384835827,1757582057283,-500.0,0.00013571,2]
[384835828,1757582057313,-500.0,0.00013571,2]
[384835829,1757582057341,-500.0,0.00013571,2]
[384835830,1757582057371,-475.29172072,0.00013571,2]
[384835831,1757582057558,-24.70827928,0.00013571,2]
[384835832,1757582057587,-500.0,0.00013571,2]
[384835833,1757582057615,-500.0,0.00013571,2]
[384835834,1757582057645,-413.28254991,0.00013572,2]
[384835835,1757582057674,-312.77237701,0.00013572,2]
[384835836,1757582057702,-500.0,0.00013572,2]
[384835837,1757582057730,-631.72901828,0.00013572,2]
[384835838,1757582057757,-500.0,0.00013572,2]
[384835839,1757582057785,-500.0,0.00013572,2]
[384835840,1757582057813,-500.0,0.00013572,2]
[384835841,1757582057841,-500.0,0.00013572,2]
[384835842,1757582057955,-500.0,0.00013572,2]
[384835843,1757582057983,-500.0,0.00013572,2]
[384835844,1757582058010,-500.0,0.00013572,2]
[384835845,1757582058040,-500.0,0.00013572,2]
[384835846,1757582058069,-355.50207889,0.00013572,2]
[384835847,1757582058099,-500.0,0.00013572,2]
[384835848,1757582058127,-500.0,0.00013572,2]
[384835849,1757582058156,-500.0,0.00013572,2]
[384835850,1757582058184,-500.0,0.00013572,2]
[384835851,1757582058340,323.80475574,0.00013571,2]
[384835852,1757582058370,965.20108648,0.00013571,2]
[384835853,1757582063720,460.15131813,0.00013435,2]
[384835854,1757582071789,1609.22798108,0.00013435,2]
[384835855,1757582084761,-343.20441446,0.0001357,2]
[384835856,1757582084791,-313.59553157,0.0001357,2]
[384835857,1757582084826,-541.32523929,0.0001357,2]
[384835858,1757582091536,690.07,0.00012329,2]
[384835859,1757582096618,-3652.28550549,0.00013571,2]
[384835860,1757582108948,-500.0,0.0001357,2]
[384835861,1757582108977,-521.16085374,0.0001357,2]
[384835862,1757582109005,-300.0,0.0001357,2]
[384835863,1757582109032,-300.0,0.0001357,2]
[384835864,1757582109060,-300.0,0.0001357,2]
[384835865,1757582109088,-300.0,0.0001357,2]
[384835866,1757582109116,-1200.0,0.0001357,2]
[384835867,1757582109251,-3157.68829252,0.00013571,2]
[384835868,1757582109293,-10000.01,0.00013571,2]
[384835869,1757582109357,-10000.01,0.00013571,2]
[384835870,1757582109511,-10000.01,0.00013571,2]
[384835871,1757582109667,-10000.01,0.00013571,2]
[384835872,1757582109857,-2224.78511551,0.00013571,2]
[384835873,1757582109886,-257.43490019,0.00013589,2]
[384835874,1757582110889,500.0,0.0001357,2]
[384835875,1757582110928,500.0,0.0001357,2]
[384835876,1757582110964,500.0,0.0001357,2]
[384835877,1757582111008,500.0,0.0001357,2]
[384835878,1757582111132,500.0,0.0001357,2]
[384835879,1757582111166,500.0,0.0001357,2]
[384835880,1757582111200,500.0,0.0001357,2]
[384835881,1757582111238,255.63252598,0.0001357,2]
[384835882,1757582119182,500.0,0.0001357,2]
[384835883,1757582122157,500.0,0.0001357,2]
[384835884,1757582122189,279.93744262,0.0001357,2]
[384835885,1757582122213,220.06255738,0.0001357,2]
[384835886,1757582122249,500.0,0.0001357,2]
[384835887,1757582122280,500.0,0.0001357,2]
[384835888,1757582122313,500.0,0.0001357,2]
[384835889,1757582122344,500.0,0.0001357,2]
[384835890,1757582122375,500.0,0.0001357,2]
[384835891,1757582122408,500.0,0.0001357,2]
[384835892,1757582122447,500.0,0.0001357,2]
[384835893,1757582122482,500.0,0.0001357,2]
[384835894,1757582122514,500.0,0.0001357,2]
[384835895,1757582122551,500.0,0.0001357,2]
[384835896,1757582122582,500.0,0.0001357,2]
[384835897,1757582122614,500.0,0.0001357,2]
[384835898,1757582122645,500.0,0.0001357,2]
[384835899,1757582122679,500.0,0.0001357,2]
[384835900,1757582122708,500.0,0.0001357,2]
[384835901,1757582122740,500.0,0.0001357,2]
[384835902,1757582122769,500.0,0.0001357,2]
[384835903,1757582122817,500.0,0.0001357,2]
[384835904,1757582122851,500.0,0.0001357,2]
[384835905,1757582122883,279.94744262,0.0001357,2]
[384835906,1757582122913,220.05255738,0.0001357,2]
[384835907,1757582122944,500.0,0.0001357,2]
[384835908,1757582122975,500.0,0.0001357,2]
[384835909,1757582123007,500.0,0.0001357,2]
[384835910,1757582123041,500.0,0.0001357,2]
[384835911,1757582123073,500.0,0.0001357,2]
[384835912,1757582123105,500.0,0.0001357,2]
[384835913,1757582123140,500.0,0.0001357,2]
[384835914,1757582123176,500.0,0.0001357,2]
[384835915,1757582123211,500.0,0.0001357,2]
[384835916,1757582123241,500.0,0.0001357,2]
[384835917,1757582123278,500.0,0.0001357,2]
[384835918,1757582123314,500.0,0.0001357,2]
[384835919,1757582123348,500.0,0.0001357,2]
[384835920,1757582123377,500.0,0.0001357,2]
[384835921,1757582123411,500.0,0.0001357,2]
[384835922,1757582123444,500.0,0.0001357,2]
[384835923,1757582123474,500.0,0.0001357,2]
[384835924,1757582123510,500.0,0.0001357,2]
[384835925,1757582123540,500.0,0.0001357,2]
[384835926,1757582123570,279.95744262,0.0001357,2]
[384835927,1757582123593,220.04255738,0.0001357,2]
[384835928,1757582123628,500.0,0.0001357,2]
[384835929,1757582123660,500.0,0.0001357,2]
[384835930,1757582123697,157.04244916,0.0001357,2]
[384835931,1757582123727,500.0,0.0001357,2]
[384835932,1757582123758,500.0,0.0001357,2]
[384835933,1757582123791,500.0,0.0001357,2]
[384835934,1757582123826,500.0,0.0001357,2]
[384835935,1757582123861,500.0,0.0001357,2]
[384835936,1757582123891,500.0,0.0001357,2]
[384835937,1757582123924,500.0,0.0001357,2]
[384835938,1757582123960,500.0,0.0001357,2]
[384835939,1757582124005,500.0,0.0001357,2]
[384835940,1757582124042,500.0,0.0001357,2]
[384835941,1757582124081,500.0,0.0001357,2]
[384835942,1757582124116,500.0,0.0001357,2]
[384835943,1757582124152,500.0,0.0001357,2]
[384835944,1757582124183,500.0,0.0001357,2]
[384835945,1757582139960,500.0,0.0001357,2]
[384835946,1757582139992,500.0,0.0001357,2]
[384835947,1757582140023,500.0,0.0001357,2]
[384835948,1757582140054,122.92499346,0.0001357,2]
[384835949,1757582140077,377.07500654,0.0001357,2]
[384835950,1757582140108,500.0,0.0001357,2]
[384835951,1757582140139,500.0,0.0001357,2]
[384835952,1757582140170,500.0,0.0001357,2]
[384835953,1757582140200,500.0,0.0001357,2]
[384835954,1757582140239,215.70424492,0.0001357,2]
[384835955,1757582140269,500.0,0.0001357,2]
[384835956,1757582140301,500.0,0.0001357,2]
[384835957,1757582140369,500.0,0.0001357,2]
[384835958,1757582140403,500.0,0.0001357,2]
[384835959,1757582140433,500.0,0.0001357,2]
[384835960,1757582140471,500.0,0.0001357,2]
[384835961,1757582142889,354.31,0.00012329,2]
[384835962,1757582145589,179.57226996,0.0001357,2]
[384835963,1757582145630,191.41119713,0.0001357,2]
[384835964,1757582146291,500.0,0.0001357,2]
[384835965,1757582146321,261.76144928,0.0001357,2]
[384835966,1757582146349,265.33642989,0.0001357,2]
[384835967,1757582146379,500.0,0.0001357,2]
[384835968,1757582146416,646.63129553,0.0001357,2]
[384835969,1757582148293,480.0,0.00013454,2]
[384835970,1757582148843,500.0,0.0001357,2]
[384835971,1757582148877,500.0,0.0001357,2]
[384835972,1757582148917,28.20810675,0.0001357,2]
[384835973,1757582148944,440.11341716,0.0001357,2]
[384835974,1757582148977,543.97340368,0.0001357,2]
[384835975,1757582153292,295.26,0.00012329,2]
[384835976,1757582156292,500.0,0.0001357,2]
[384835977,1757582156352,500.0,0.0001357,2]
[384835978,1757582156400,482.63827905,0.0001357,2]
[384835979,1757582162785,300.0,0.00013589,2]
[384835980,1757582163818,452.87,0.00012329,2]
[384835981,1757582166071,6485.15490011,0.00013454,2]
[384835982,1757582166095,413.93382197,0.00013454,2]
[384835983,1757582173444,500.0,0.0001357,2]
[384835984,1757582173490,500.0,0.0001357,2]
[384835985,1757582173539,500.0,0.0001357,2]
[384835986,1757582173595,500.0,0.0001357,2]
[384835987,1757582173654,584.8010228,0.0001357,2]
[384835988,1757582174352,377.39,0.00012329,2]
[384835989,1757582175620,3430.92596847,0.00013454,2]
[384835990,1757582175983,204.10530951,0.0001347,2]
[384835991,1757582184415,2988.85387725,0.00013454,2]
[384835992,1757582184438,1659.32206048,0.00013454,2]
[384835993,1757582184781,375.0,0.00012329,2]
[384835994,1757582194608,500.0,0.00013589,2]
[384835995,1757582194639,600.25153573,0.00013589,2]
[384835996,1757582194670,500.0,0.00013589,2]
[384835997,1757582194702,276.3590108,0.00013589,2]
[384835998,1757582194751,500.0,0.00013589,2]
[384835999,1757582194795,500.0,0.00013589,2]
[384836000,1757582194829,500.0,0.00013589,2]
[384836001,1757582194868,500.0,0.00013589,2]
[384836002,1757582194904,500.0,0.00013589,2]
[384836003,1757582194950,500.0,0.00013589,2]
[384836004,1757582195002,180.05052677,0.00013589,2]
[384836005,1757582195181,312.5,0.00012329,2]
[384836006,1757582202633,549.1552618,0.00013454,2]
[384836007,1757582205610,562.98,0.00012329,2]
[384836008,1757582206769,1123.0,0.00028717,60]
[384836009,1757582211480,500.0,0.00013589,2]
[384836010,1757582211539,500.0,0.00013589,2]
[384836011,1757582211711,484.39160442,0.00013589,2]
[384836012,1757582211734,15.60839558,0.00013589,2]
[384836013,1757582211765,500.0,0.00013589,2]
[384836014,1757582211809,500.0,0.00013589,2]
[384836015,1757582211874,500.0,0.00013589,2]
[384836016,1757582216004,469.15,0.00012329,2]
[384836017,1757582226643,390.96,0.00012329,2]
[384836018,1757582228655,549.1552618,0.00013454,2]
[384836019,1757582229281,500.0,0.00013589,2]
[384836020,1757582229335,297.39443475,0.00013589,2]
[384836021,1757582229526,500.0,0.00013589,2]
[384836022,1757582229558,500.0,0.00013589,2]
[384836023,1757582229590,500.0,0.00013589,2]
[384836024,1757582229638,500.0,0.00013589,2]
[384836025,1757582229669,500.0,0.00013589,2]
[384836026,1757582229702,500.0,0.00013589,2]
[384836027,1757582229738,500.0,0.00013589,2]
[384836028,1757582229770,500.0,0.00013589,2]
[384836029,1757582229809,500.0,0.00013589,2]
[384836030,1757582229845,200.0,0.00013589,2]
[384836031,1757582229876,500.0,0.00013589,2]
[384836032,1757582229907,500.0,0.00013589,2]
[384836033,1757582230066,500.0,0.00013589,2]
[384836034,1757582230100,77.74190787,0.00013589,2]
[384836035,1757582230125,422.25809213,0.00013589,2]
[384836036,1757582230161,500.0,0.00013589,2]
[384836037,1757582237104,325.8,0.00012329,2]
[384836038,1757582237846,1200.0,0.00013589,2]
[384836039,1757582244314,168.0,0.00013454,2]
[384836040,1757582247334,500.0,0.00013589,2]
[384836041,1757582247364,200.0,0.00013589,2]
[384836042,1757582247396,500.0,0.00013589,2]
[384836043,1757582247439,500.0,0.00013589,2]
[384836044,1757582247495,500.0,0.00013589,2]
[384836045,1757582247547,500.0,0.00013589,2]
[384836046,1757582247767,271.5,0.00012329,2]
[384836047,1757582252485,1647.4657854,0.00013454,2]
[384836048,1757582258394,226.25,0.00012329,2]
[384836049,1757582265160,500.0,0.00013589,2]
[384836050,1757582265223,500.0,0.00013589,2]
[384836051,1757582265265,550.33449606,0.00013589,2]
[384836052,1757582265331,500.0,0.00013589,2]
[384836053,1757582265384,488.40162641,0.00013589,2]
[384836054,1757582265411,11.59837359,0.00013589,2]
[384836055,1757582268689,188.54,0.00012329,2]
[384836056,1757582277129,3249.1552618,0.00013454,2]
[384836057,1757582279312,157.12,0.00012329,2]
[384836058,1757582282836,300.0,0.00013589,2]
[384836059,1757582289719,785.62,0.00012329,2]
[384836060,1757582292907,500.0,0.00013589,2]
[384836061,1757582292973,500.0,0.00013589,2]
[384836062,1757582293028,500.0,0.00013589,2]
[384836063,1757582293074,500.0,0.00013589,2]
[384836064,1757582293129,500.0,0.00013589,2]
[384836065,1757582293178,200.0,0.00013589,2]
[384836066,1757582294538,761.56147376,0.00013454,2]
[384836067,1757582306273,159.92134935,0.00013498,2]
[384836068,1757582310762,500.0,0.00013589,2]
[384836069,1757582310818,500.0,0.00013589,2]
[384836070,1757582310871,500.0,0.00013589,2]
[384836071,1757582317929,186.4935415,0.00013454,2]
[384836072,1757582317952,2664.70526095,0.00013454,2]
[384836073,1757582320393,171.366129,0.00024,30]
[384836074,1757582343120,300.0,0.00013589,2]
[384836075,1757582343544,2358.95133893,0.00013454,2]
[384836078,1757582352349,501.27191631,0.00013454,2]
[384836079,1757582352889,500.0,0.00013589,2]
[384836080,1757582352943,500.0,0.00013589,2]
[384836081,1757582353113,500.0,0.00013589,2]
[384836082,1757582353146,500.0,0.00013589,2]
[384836083,1757582353178,375.45054935,0.00013589,2]
[384836084,1757582353441,500.0,0.00013589,2]
[384836085,1757582370351,1299.63093446,0.00013454,2]
[384836086,1757582370376,1092.77512146,0.00013454,2]
[384836087,1757582370698,500.0,0.00013589,2]
[384836088,1757582370729,455.44704761,0.00013589,2]
[384836089,1757582370760,500.0,0.00013589,2]
[384836090,1757582370806,500.0,0.00013589,2]
[384836091,1757582370886,500.0,0.00013589,2]
[384836092,1757582370976,500.0,0.00013589,2]
[384836093,1757582383063,500.0,0.00013589,2]
[384836094,1757582383112,500.0,0.00013589,2]
[384836095,1757582383161,302.47224598,0.00013589,2]
[384836096,1757582388805,500.0,0.00013589,2]
[384836097,1757582388841,500.0,0.00013589,2]